Workbook

Sheet Figure 1 c RT-PCR
A1: Family A RT-PCR:

Sheet Figure 1 e qPCR
A1: Family A qPCR:
A3: Relative Quantification: all to mean RNF170_2 PaxGene_Fibroblasten_Lauf 1_11_10_17
A5: RNF170_2 Pax Gene all to mean
F6: Target | H6: Reference | J6: Ratio
A7: Chart | B7: Pairing | C7: Sample Name | D7: Targets | E7: References | F7: Mean Cp | G7: CP Error | H7: Mean Cp | I7: Cp Error | J7: Target/Ref | K7: Target/Ref Error | L7: Normalized | M7: Normalized Error | N7: Target/Ref SP/CO | O7: Status
A8: True | C8: Cali | D8: RNF170_2 | E8: RNF10;RNF111;RPLP0 | F8: 21.926053 | G8: 0.1359020737 | H8: 15.94496168 | I8: 0.4395995119 | J8: 0.2561 | K8: 4.30E-02 | L8: 1 | O8: E - Extrapolated Standard Curve
A9: True | B9: A11/A2 | C9: PG-SP-171 | D9: RNF170_2 | E9: RNF10;RNF111;RPLP0 | F9: 23.14976368 | G9: 1.212793522 | H9: 16.43101823 | I9: 1.568612807 | J9: 0.135 | K9: 0.1205 | L9: 0.5272 | M9: 0.4899 | N9: 0.4821428571
A10: True | B10: D11/D2 | C10: PG-CO-4 | D10: RNF170_2 | E10: RNF10;RNF111;RPLP0 | F10: 23.17596433 | G10: 1.119648258 | H10: 16.75924702 | I10: 1.483496914 | J10: 0.1641 | K10: 0.1784 | L10: 0.6409 | M10: 0.7181
A11: True | B11: G11/G2 | C11: PG-CO-5 | D11: RNF170_2 | E11: RNF10;RNF111;RPLP0 | F11: 21.64291484 | G11: 0.4351637407 | H11: 16.3553157 | I11: 1.253143156 | J11: 0.3653 | K11: 0.116 | L11: 1.427 | M11: 0.5054
A12: True | B12: J11/J2 | C12: PG-CO-6 | D12: RNF170_2 | E12: RNF10;RNF111;RPLP0 | F12: 22.42841257 | G12: 0.3764083333 | H12: 16.8007288 | I12: 1.545928834 | J12: 0.3106 | K12: 0.0964 | L12: 1.213 | M12: 0.4347
A14: RNF170_2 Fibros all to mean
F15: Target | H15: Reference | J15: Ratio
A16: Chart | B16: Pairing | C16: Sample Name | D16: Targets | E16: References | F16: Mean Cp | G16: CP Error | H16: Mean Cp | I16: Cp Error | J16: Target/Ref | K16: Target/Ref Error | L16: Normalized | M16: Normalized Error | N16: Target/Ref SP/CO | O16: Status
A17: True | C17: Cali | D17: RNF170_2 | E17: RNF10;RNF111;RPLP0 | F17: 21.926053 | G17: 0.1359020737 | H17: 15.94496168 | I17: 0.4395995119 | J17: 0.2561 | K17: 4.30E-02 | L17: 1 | O17: E - Extrapolated Standard Curve
A18: True | B18: M11/M2 | C18: F-SP_171 | D18: RNF170_2 | E18: RNF10;RNF111;RPLP0 | F18: 20.83544302 | G18: 0.6124898467 | H18: 15.91142531 | I18: 2.822135163 | J18: 0.516 | K18: 0.1797 | L18: 2.015 | M18: 0.7923 | N18: 0.3580598154
A19: True | B19: A12/A3 | C19: F-CO-9 | D19: RNF170_2 | E19: RNF10;RNF111;RPLP0 | F19: 19.08102353 | G19: 0.3156687118 | H19: 16.94619717 | I19: 2.195782702 | J19: 2.637 | K19: 0.5495 | L19: 10.3 | M19: 2.79
A20: True | B20: D12/D3 | C20: F-CO-23 | D20: RNF170_2 | E20: RNF10;RNF111;RPLP0 | F20: 20.19736325 | G20: 0.1085637379 | H20: 16.41224825 | I20: 2.586964154 | J20: 1.016 | K20: 0.1277 | L20: 3.969 | M20: 0.8301
A21: True | B21: G12/G3 | C21: F-CO-61 | D21: RNF170_2 | E21: RNF10;RNF111;RPLP0 | F21: 19.47217357 | G21: 0.5244653922 | H21: 15.15528309 | I21: 3.052887201 | J21: 0.6703 | K21: 0.1873 | L21: 2.617 | M21: 0.8664
A24: Relative Quantification: all to mean RNF170_2 PaxGene_Fibroblasten_Lauf 2_24_10_17
A26: RNF170_2 Pax Gene all to mean
F27: Target | H27: Reference | J27: Ratio
A28: Chart | B28: Pairing | C28: Sample Name | D28: Targets | E28: References | F28: Mean Cp | G28: CP Error | H28: Mean Cp | I28: Cp Error | J28: Target/Ref | K28: Target/Ref Error | L28: Normalized | M28: Normalized Error | N28: Target/Ref SP/CO | O28: Status
A29: True | C29: Cali | D29: RNF170_2 | E29: RNF10;RNF111;RPLP0 | F29: 21.75742414 | G29: 0.318291284 | H29: 16.29939664 | I29: 0.6793045076 | J29: 0.3583 | K29: 6.71E-02 | L29: 1
A30: True | B30: A11/A2 | C30: PG-SP-171 | D30: RNF170_2 | E30: RNF10;RNF111;RPLP0 | F30: 23.08680307 | G30: 1.03483302 | H30: 16.6274468 | I30: 1.469846521 | J30: 0.1943 | K30: 0.1049 | L30: 0.5423 | M30: 0.3211 | N30: 0.7151269783
A31: True | B31: D11/D2 | C31: PG-CO-4 | D31: RNF170_2 | E31: RNF10;RNF111;RPLP0 | F31: 22.85531995 | G31: 1.000870234 | H31: 16.86084032 | I31: 1.566923328 | J31: 0.2531 | K31: 0.1515 | L31: 0.7065 | M31: 0.4579
A32: True | B32: G11/G2 | C32: PG-CO-5 | D32: RNF170_2 | E32: RNF10;RNF111;RPLP0 | F32: 21.52009473 | G32: 0.4393634919 | H32: 16.08581474 | I32: 1.0896504 | J32: 0.3622 | K32: 0.1038 | L32: 1.011 | M32: 0.356
A33: True | B33: J11/J2 | C33: PG-CO-6 | D33: RNF170_2 | E33: RNF10;RNF111;RPLP0 | F33: 23.26989032 | G33: 0.9143427127 | H33: 16.8351317 | I33: 1.596851393 | J33: 0.1998 | K33: 0.0884 | L33: 0.5577 | M33: 0.2781
A35: RNF170_2 Fibros all to mean
F36: Target | H36: Reference | J36: Ratio
A37: Chart | B37: Pairing | C37: Sample Name | D37: Targets | E37: References | F37: Mean Cp | G37: CP Error | H37: Mean Cp | I37: Cp Error | J37: Target/Ref | K37: Target/Ref Error | L37: Normalized | M37: Normalized Error | N37: Target/Ref SP/CO | O37: Status
A38: True | C38: Cali | D38: RNF170_2 | E38: RNF10;RNF111;RPLP0 | F38: 21.75742414 | G38: 0.318291284 | H38: 16.29939664 | I38: 0.6793045076 | J38: 0.3583 | K38: 6.71E-02 | L38: 1
A39: True | B39: M11/M2 | C39: F-SP_171 | D39: RNF170_2 | E39: RNF10;RNF111;RPLP0 | F39: 20.66336452 | G39: 0.3742385056 | H39: 16.01821195 | I39: 2.828397526 | J39: 0.5669 | K39: 0.1203 | L39: 1.582 | M39: 0.4596 | N39: 0.3841479942
A40: True | B40: A12/A3 | C40: F-CO-9 | D40: RNF170_2 | E40: RNF10;RNF111;RPLP0 | F40: 18.99622616 | G40: 0.4029857851 | H40: 16.87439433 | I40: 2.160230679 | J40: 2.436 | K40: 0.4881 | L40: 6.801 | M40: 1.915
A41: True | B41: D12/D3 | C41: F-CO-23 | D41: RNF170_2 | E41: RNF10;RNF111;RPLP0 | F41: 19.89735407 | G41: 0.1102501712 | H41: 16.35388567 | I41: 2.596083174 | J41: 1.07 | K41: 0.1193 | L41: 2.985 | M41: 0.6619
A42: True | B42: G12/G3 | C42: F-CO-61 | D42: RNF170_2 | E42: RNF10;RNF111;RPLP0 | F42: 19.24320259 | G42: 0.2783363538 | H42: 15.41203569 | I42: 2.828177785 | J42: 0.9212 | K42: 0.1438 | L42: 2.571 | M42: 0.6408
A45: Relative Quantification: all to mean RNF170_2 PaxGene_Fibroblasten_Lauf 3_26_10_17
A47: RNF170_2 Pax Gene all to mean
F48: Target | H48: Reference | J48: Ratio
A49: Chart | B49: Pairing | C49: Sample Name | D49: Targets | E49: References | F49: Mean Cp | G49: CP Error | H49: Mean Cp | I49: Cp Error | J49: Target/Ref | K49: Target/Ref Error | L49: Normalized | M49: Normalized Error | N49: Target/Ref SP/CO | O49: Status
A50: True | C50: Cali | D50: RNF170_2 | E50: RNF10;RNF111;RPLP0 | F50: 21.99913985 | G50: 0.1988336331 | H50: 16.24081416 | I50: 0.7340358844 | J50: 0.2499 | K50: 4.83E-02 | L50: 1
A51: True | B51: B11/A2 | C51: PG-SP-171 | D51: RNF170_2 | E51: RNF10;RNF111;RPLP0 | F51: 23.65328892 | G51: 0.2540097764 | H51: 16.46999825 | I51: 1.476482398 | J51: 0.107 | K51: 0.0246 | L51: 0.4281 | M51: 0.1269 | N51: 0.4480737018
A52: True | B52: D11/D2 | C52: PG-CO-4 | D52: RNF170_2 | E52: RNF10;RNF111;RPLP0 | F52: 22.88318527 | G52: 1.139671077 | H52: 16.84098647 | I52: 1.549058134 | J52: 0.2137 | K52: 0.1279 | L52: 0.8555 | M52: 0.5515
A53: True | B53: G11/G2 | C53: PG-CO-5 | D53: RNF170_2 | E53: RNF10;RNF111;RPLP0 | F53: 21.72343476 | G53: 0.2206643379 | H53: 16.33034216 | I53: 1.102372989 | J53: 0.3161 | K53: 0.0748 | L53: 1.265 | M53: 0.3824
A54: True | B54: J11/J2 | C54: PG-CO-6 | D54: RNF170_2 | E54: RNF10;RNF111;RPLP0 | F54: 23.11065835 | G54: 0.4908443633 | H54: 16.78314489 | I54: 1.482989108 | J54: 0.1866 | K54: 0.0593 | L54: 0.7468 | M54: 0.2791
A56: RNF170_2 Fibros all to mean
F57: Target | H57: Reference | J57: Ratio
A58: Chart | B58: Pairing | C58: Sample Name | D58: Targets | E58: References | F58: Mean Cp | G58: CP Error | H58: Mean Cp | I58: Cp Error | J58: Target/Ref | K58: Target/Ref Error | L58: Normalized | M58: Normalized Error | N58: Target/Ref SP/CO | O58: Status
A59: True | C59: Cali | D59: RNF170_2 | E59: RNF10;RNF111;RPLP0 | F59: 21.99913985 | G59: 0.1988336331 | H59: 16.24081416 | I59: 0.7340358844 | J59: 0.2499 | K59: 4.83E-02 | L59: 1
A60: True | B60: M11/M2 | C60: F-SP_171 | D60: RNF170_2 | E60: RNF10;RNF111;RPLP0 | F60: 20.69930679 | G60: 0.2445487697 | H60: 15.93416937 | I60: 2.806118672 | J60: 0.4731 | K60: 0.1116 | L60: 1.893 | M60: 0.5729 | N60: 0.341892901
A61: True | B61: A12/A3 | C61: F-CO-9 | D61: RNF170_2 | E61: RNF10;RNF111;RPLP0 | F61: 18.90154261 | G61: 0.2066694212 | H61: 16.83795092 | I61: 2.188372701 | J61: 2.54 | K61: 0.4257 | L61: 10.17 | M61: 2.538
A62: True | B62: D12/D3 | C62: F-CO-23 | D62: RNF170_2 | E62: RNF10;RNF111;RPLP0 | F62: 19.88789485 | G62: 0.3239425716 | H62: 16.27103589 | I62: 2.581479492 | J62: 0.9647 | K62: 0.2428 | L62: 3.861 | M62: 1.224
A63: True | B63: G12/G3 | C63: F-CO-61 | D63: RNF170_2 | E63: RNF10;RNF111;RPLP0 | F63: 19.30002631 | G63: 0.2882079595 | H63: 14.93300348 | I63: 3.247932071 | J63: 0.6466 | K63: 0.1152 | L63: 2.588 | M63: 0.6704 | O63: C, N, E - Target/Reference ratio uncertain, Normalized ratio uncertain, Extrapolated Standard Curve

Sheet Figure 1 f RNF170 WB
A1: Family A RNF170 WB:

Sheet Figure 2 a+b
C2: WB 1
D29: Quantification Data:
D31: WB 1 | E31: Cell lines | F31: IP3R-3 | G31: Vinculin | H31: normalized to Vinculin | I31: normalized to A.4
D32: 1 | E32: A.4 | F32: 5,159,254.50 | G32: 3,600,692.00 | H32: 1.432850824 | I32: 1
D33: 2 | E33: C.4 | F33: 3,289,278.50 | G33: 3,478,596.00 | H33: 0.945576462 | I33: 0.659926663
D34: 3 | E34: Co1 | F34: 1,458,506.50 | G34: 2,533,588.00 | H34: 0.57566838 | I34: 0.40176435
D35: 4 | E35: Co2 | F35: 1,186,694.50 | G35: 2,514,900.00 | H35: 0.471865482 | I35: 0.329319336
D36: 5 | E36: Co3 | F36: 2,444,338.50 | G36: 3,330,256.00 | H36: 0.73397916 | I36: 0.512250925
D37: 6 | E37: Co4 | F37: 3,069,814.50 | G37: 3,423,332.00 | H37: 0.89673292 | I37: 0.625838297 | O37: WB 3:
A38: WB 2: | D38: 7 | E38: Co5 | F38: 2,549,966.50 | G38: 3,319,724.00 | H38: 0.768126055 | I38: 0.536082363
A70: Quantification Data:
A71: WB 2: | O71: WB 3:
B72: Cell lines | C72: IP3R-3 | D72: Vinculin | E72: Normalized to Vinculin | P72: Cell lines | Q72: IP3R-3 | R72: Vinculin | S72: Normalized to Vinculin
A73: 1 | B73: A.4 | C73: 8986.37 | D73: 15260.97 | E73: =C73/D73 -> 0.59 | O73: 1 | P73: A.4 | Q73: 11870.76 | R73: 15250.34 | S73: =Q73/R73 -> 0.78
A74: 2 | B74: Co1 | C74: 1212.13 | D74: 13546.39 | E74: =C74/D74 -> 0.09 | O74: 2 | P74: Co1 | Q74: 565.06 | R74: 12802.85 | S74: =Q74/R74 -> 0.04
A75: 3 | B75: Co2 | C75: 4676.42 | D75: 16122.05 | E75: 0.29 | O75: 3 | P75: Co2 | Q75: 1432.26 | R75: 13753.10 | S75: 0.10
A76: 4 | B76: Co3 | C76: 1487.18 | D76: 18078.70 | E76: 0.08 | O76: 4 | P76: Co3 | Q76: 2067.60 | R76: 13634.92 | S76: 0.15
A77: 5 | B77: Co4 | C77: 1583.26 | D77: 13503.10 | E77: 0.12 | O77: 5 | P77: Co4 | Q77: 782.11 | R77: 14092.80 | S77: 0.06
A78: 6 | B78: A.4 | C78: 9202.15 | D78: 16381.17 | E78: 0.56
A79: 7 | B79: Co1 | C79: 2660.21 | D79: 13589.51 | E79: 0.20
A80: 8 | B80: Co2 | C80: 4991.64 | D80: 15009.46 | E80: 0.33
A81: 9 | B81: Co3 | C81: 3656.57 | D81: 13741.56 | E81: 0.27
A84: WB 4:
A107: Quantification Data:
A108: WB 4:
B109: Cell lines | C109: IP3R-3 | D109: Vinculin | E109: Normalized to Vinculin
B110: A.4 | C110: 2,122,076.05 | D110: 3,336,010.71 | E110: =C110/D110 -> 0.6361118825
B111: C.4 | C111: 2,078,052.05 | D111: 3,353,410.71 | E111: =C111/D111 -> 0.6196831323
B112: Co1 | C112: 1,050,500.05 | D112: 3,157,458.71 | E112: 0.3327042882
B113: Co2 | C113: 1,139,192.05 | D113: 3,769,722.71 | E113: 0.3021951852
B115: A.4 | C115: 3,082,424.05 | D115: 4,686,942.71 | E115: 0.6576619864
B116: C.4 | C116: 2,287,692.05 | D116: 3,883,922.71 | E116: 0.5890158542
B117: Co1 | C117: 721,096.05 | D117: 3,623,774.71 | E117: 0.1989903099
B118: Co2 | C118: 1,311,452.05 | D118: 4,059,982.71 | E118: 0.3230191226
A120: WB5 | I120: WB6 | P120: WB7
A145: WB 5: | I145: WB 6: | P145: WB 7:
B146: Cell lines | C146: IP3R-3 | D146: Vinculin | E146: Normalized to Vinculin | J146: Cell lines | K146: IP3R-3 | L146: Vinculin | M146: Normalized to Vinculin | Q146: Cell lines | R146: IP3R-3 | S146: Vinculin | T146: Normalized to Vinculin
B147: C.4 basal | C147: 43,070,617.48 | D147: 107,251,216.72 | E147: =C147/D147 -> 0.4015862831 | J147: C.4 basal | K147: 1,567,263.16 | L147: 4,910,244.76 | M147: =K147/L147 -> 0.3191822884 | Q147: C.4 basal | R147: 46,079,822.67 | S147: 91,765,887.18 | T147: =R147/S147 -> 0.5021454495
B148: C.4 starved | C148: 45,250,809.48 | D148: 87,943,089.72 | E148: =C148/D148 -> 0.5145465053 | J148: C.4 starved | K148: 1,331,332.63 | L148: 3,534,996.00 | M148: =K148/L148 -> 0.376615032 | Q148: C.4 starved | R148: 43,170,294.67 | S148: 51,910,132.18 | T148: =R148/S148 -> 0.8316352291
B149: A.4 basal | C149: 54,325,521.48 | D149: 85,794,802.72 | E149: 0.6332029419 | J149: A.4 basal | K149: 1,973,938.74 | L149: 2,545,724.87 | M149: 0.7753935865 | Q149: A.4 basal | R149: 43,134,758.67 | S149: 47,224,767.18 | T149: 0.9133927226
B150: A.4 starved | C150: 58,311,755.48 | D150: 96,160,478.72 | E150: 0.6064004283 | J150: A.4 starved | K150: 1,876,738.95 | L150: 2,573,550.91 | M150: 0.7292410423 | Q150: A.4 starved | R150: 47,324,267.67 | S150: 39,430,657.21 | T150: 1.200189675
B151: Co1 basal | C151: 13,226,905.48 | D151: 81,625,153.72 | E151: 0.1620444787 | J151: Co1 basal | K151: 741,259.79 | L151: 2,723,968.73 | M151: 0.2721249264 | Q151: Co1 basal | R151: 13,320,176.67 | S151: 34,667,523.21 | T151: 0.384226372
B152: Co1 starved | C152: 13,995,058.48 | D152: 70,250,013.72 | E152: 0.1992178754 | J152: Co1 starved | K152: 591,902.74 | L152: 2,925,172.36 | M152: 0.2023479861 | Q152: Co1 starved | R152: 13,273,263.67 | S152: 36,423,512.21 | T152: 0.3644147108
B153: Co2 basal | C153: 9,777,873.48 | D153: 88,233,601.72 | E153: 0.110818025 | J153: Co2 basal | K153: 541,289.89 | L153: 3,018,492.36 | M153: 0.1793245864 | Q153: Co2 basal | R153: 10,389,546.67 | S153: 36,776,891.21 | T153: 0.2825020366
B154: Co2 starved | C154: 11,288,267.48 | D154: 93,148,362.72 | E154: 0.1211858926 | J154: Co2 starved | K154: 686,440.21 | L154: 3,696,430.78 | M154: 0.1857035207 | Q154: Co2 starved | R154: 10,894,527.67 | S154: 35,271,269.21 | T154: 0.3088782432

Sheet Figure 2 c+d
A1: WB 1: | H1: WB2: | O1: WB3:
A21: WB1 | B21: Cell lines | C21: IP3R-3 | D21: Vinculin | E21: Normalized to Vinculin | F21: each sample normalized to t=0 | H21: WB2 | I21: Cell lines | J21: IP3R-3 | K21: Vinculin | L21: Normalized to Vinculin | M21: each sample normalized to t=0 | O21: WB3 | P21: Cell lines | Q21: IP3R-3 | R21: Vinculin | S21: Normalized to Vinculin | T21: each sample normalized to t=0
A22: 1 | B22: A.4 0 min | C22: 14334.924 | D22: 15995.309 | E22: 0.90 | F22: =E22/E22 -> 1 | H22: 1 | I22: A.4 0 min | J22: 10941.024 | K22: 22434.572 | L22: 0.49 | M22: =L22/L22 -> 1 | O22: 1 | P22: A.4 0 min | Q22: 14062.974 | R22: 22720.037 | S22: =Q22/R22 -> 0.62 | T22: =S22/S22 -> 1
A23: 2 | B23: A.4 30 min | C23: 15916.530 | D23: 15117.602 | E23: 1.05 | F23: =E23/E22 -> 1.174796717 | H23: 2 | I23: A.4 30 min | J23: 10627.246 | K23: 20840.915 | L23: 0.51 | M23: =L23/L22 -> 1.045595654 | O23: 2 | P23: A.4 30 min | Q23: 10561.731 | R23: 20837.329 | S23: =Q23/R23 -> 0.51 | T23: =S23/S22 -> 0.8188887669
A24: 3 | B24: A.4 60 min | C24: 7220.146 | D24: 16130.037 | E24: 0.45 | F24: =E24/E22 -> 0.4994682145 | H24: 3 | I24: A.4 60 min | J24: 9470.075 | K24: 20805.158 | L24: 0.46 | M24: =L24/L22 -> 0.9333450276 | O24: 3 | P24: A.4 60 min | Q24: 19312.510 | R24: 19723.451 | S24: =Q24/R24 -> 0.98 | T24: =S24/S22 -> 1.58193151
A25: 4 | B25: Co1 0 min | C25: 5112.246 | D25: 18057.794 | E25: 0.28 | F25: =E25/E25 -> 1 | H25: 4 | I25: Co1 0 min | J25: 7533.640 | K25: 17304.279 | L25: 0.44 | M25: =L25/L25 -> 1 | O25: 4 | P25: Co1 0 min | Q25: 3137.347 | R25: 23214.451 | S25: =Q25/R25 -> 0.14 | T25: =S25/S25 -> 1
A26: 5 | B26: Co1 30 min | C26: 730.113 | D26: 18000.551 | E26: 0.04 | F26: =E26/E25 -> 0.1432706505 | H26: 5 | I26: Co1 30 min | J26: 2527.912 | K26: 15809.380 | L26: 0.16 | M26: =L26/L25 -> 0.3672787134 | O26: 5 | P26: Co1 30 min | Q26: 1025.062 | R26: 23454.108 | S26: =Q26/R26 -> 0.04 | T26: =S26/S25 -> 0.3233903641
A27: 6 | B27: Co1 60 min | C27: 663.113 | D27: 17133.673 | E27: 0.04 | F27: =E27/E25 -> 0.1367067689 | H27: 6 | I27: Co1 60 min | J27: 1843.669 | K27: 16204.137 | L27: 0.11 | M27: =L27/L25 -> 0.2613398831 | O27: 6 | P27: Co1 60 min | Q27: 652.920 | R27: 17325.551 | S27: =Q27/R27 -> 0.04 | T27: =S27/S25 -> 0.2788487991
A28: 7 | B28: Co3 0 min | C28: 3825.882 | D28: 13639.066 | E28: 0.28 | F28: =E28/E28 -> 1 | H28: 7 | I28: Co3 0 min | J28: 7803.296 | K28: 19676.966 | L28: 0.40 | M28: =L28/L28 -> 1 | O28: 7 | P28: Co3 0 min | Q28: 8758.903 | R28: 17558.087 | S28: =Q28/R28 -> 0.50 | T28: =S28/S28 -> 1
A29: 8 | B29: Co3 30 min | C29: 1459.255 | D29: 15135.480 | E29: 0.10 | F29: =E29/E28 -> 0.3437067421 | H29: 8 | I29: Co3 30 min | J29: 6511.004 | K29: 20170.380 | L29: 0.32 | M29: =L29/L28 -> 0.8139803783 | O29: 8 | P29: Co3 30 min | Q29: 7008.125 | R29: 18012.158 | S29: 0.39 | T29: =S29/S28 -> 0.7799442694
A30: 9 | B30: Co3 60 min | C30: 1580.841 | D30: 18473.551 | E30: 0.09 | F30: =E30/E28 -> 0.3050639344 | H30: 9 | I30: Co3 60 min | J30: 5579.418 | K30: 13844.238 | L30: 0.40 | M30: =L30/L28 -> 1.016248451 | O30: 9 | P30: Co3 60 min | Q30: 4243.518 | R30: 14710.794 | S30: 0.29 | T30: =S30/S28 -> 0.5782523608
A33: WB4 | H33: WB5 | O33: WB6 | V33: WB7
A58: WB4 | B58: Cell lines | C58: IP3R-3 | D58: Vinculin | E58: Normalized to Vinculin | F58: each sample normalized to t=0 | H58: WB5 | I58: Cell lines | J58: IP3R-3 | K58: Vinculin | L58: Normalized to Vinculin | M58: each sample normalized to t=0 | O58: WB6 | P58: Cell lines | Q58: IP3R-3 | R58: Vinculin | S58: Normalized to Vinculin | T58: each sample normalized to t=0 | V58: WB7 | W58: Cell lines | X58: IP3R-3 | Y58: Vinculin | Z58: Normalized to Vinculin | AA58: each sample normalized to t=0
A59: 1 | B59: C.4 0 min | C59: 10,636,952.00 | D59: 5,954,692.00 | E59: =C59/D59 -> 1.786314389 | F59: =E59/$E$59 -> 1 | H59: 1 | I59: C.4 0 min | J59: 3,892,608.00 | K59: 11,744,419.00 | L59: =J59/K59 -> 0.3314432157 | M59: =L59/$L$59 -> 1 | O59: 1 | P59: C.4 0 min | Q59: 2,259,362.84 | R59: 1,700,407.58 | S59: =Q59/R59 -> 1.328718403 | T59: =S59/$S$59 -> 1 | V59: 1 | W59: C.4 0 min | X59: 1,076,360.85 | Y59: 7,075,811.00 | Z59: =X59/Y59 -> 0.1521183718 | AA59: =Z59/$Z$59 -> 1
A60: 2 | B60: C.4 30 min | C60: 7,333,312.00 | D60: 4,865,216.00 | E60: =C60/D60 -> 1.507294229 | F60: =E60/$E$59 -> 0.8438012024 | H60: 2 | I60: C.4 30 min | J60: 5,110,322.50 | K60: 10,195,332.00 | L60: =J60/K60 -> 0.5012414015 | M60: =L60/$L$59 -> 1.512299476 | O60: 2 | P60: C.4 30 min | Q60: 2,232,804.47 | R60: 1,546,603.58 | S60: =Q60/R60 -> 1.443682469 | T60: =S60/$S$59 -> 1.086522521 | V60: 2 | W60: C.4 30 min | X60: 1,541,057.94 | Y60: 6,864,704.00 | Z60: =X60/Y60 -> 0.2244900784 | AA60: =Z60/$Z$59 -> 1.475759146
A61: 3 | B61: C.4 60 min | C61: 6,441,107.00 | D61: 4,083,932.00 | E61: 1.577182725 | F61: 0.882925612 | H61: 3 | I61: C.4 60 min | J61: 4,719,167.50 | K61: 10,085,814.50 | L61: 0.4679014769 | M61: 1.411709321 | O61: 3 | P61: C.4 60 min | Q61: 2,727,648.84 | R61: 1,256,923.58 | S61: 2.170099191 | T61: 1.633227317 | V61: 3 | W61: C.4 60 min | X61: 2,103,931.27 | Y61: 6,333,576.00 | Z61: 0.3321869466 | AA61: 2.183739825
A62: 4 | B62: Co1 0 min | C62: 3,805,084.00 | D62: 4,361,864.00 | E62: 0.8723527373 | F62: =E62/$E$62 -> 1 | H62: 4 | I62: Co1 0 min | J62: 1,843,509.50 | K62: 10,999,150.00 | L62: 0.167604724 | M62: =L62/$L$62 -> 1 | O62: 4 | P62: Co1 0 min | Q62: 958,740.84 | R62: 1,339,787.58 | S62: 0.7155916782 | T62: =S62/$S$62 -> 1 | V62: 4 | W62: Co1 0 min | X62: 887,214.79 | Y62: 6,515,308.00 | Z62: 0.1361738828 | AA62: =Z62/$Z$62 -> 1
A63: 5 | B63: Co1 30 min | C63: 2,281,696.00 | D63: 5,176,876.00 | E63: 0.4407476633 | F63: =E63/$E$62 -> 0.5052401906 | H63: 5 | I63: Co1 30 min | J63: 2,242,928.50 | K63: 10,277,675.00 | L63: 0.2182330634 | M63: =L63/$L$62 -> 1.302069883 | O63: 5 | P63: Co1 30 min | Q63: 675,334.37 | R63: 1,566,167.58 | S63: 0.431201857 | T63: =S63/$S$62 -> 0.6025808713 | V63: 5 | W63: Co1 30 min | X63: 1,078,206.79 | Y63: 6,658,332.00 | Z63: 0.1619334674 | AA63: =Z63/$Z$62 -> 1.189166851
A64: 6 | B64: Co1 60 min | C64: 1,825,676.00 | D64: 4,425,904.00 | E64: 0.4124978761 | F64: 0.4728567453 | H64: 6 | I64: Co1 60 min | J64: 1,643,265.00 | K64: 10,482,948.00 | L64: 0.1567560003 | M64: 0.9352719695 | O64: 6 | P64: Co1 60 min | Q64: 635,876.74 | R64: 1,660,347.58 | S64: 0.3829780854 | T64: 0.5351908037 | V64: 6 | W64: Co1 60 min | X64: 528,851.76 | Y64: 6,423,935.00 | Z64: 0.08232520372 | AA64: 0.6045594209
A65: 7 | B65: Co2 0 min | C65: 1,650,528.00 | D65: 3,018,554.60 | E65: 0.5467941511 | F65: =E65/$E$65 -> 1 | H65: 7 | I65: Co2 0 min | J65: 1,358,575.00 | K65: 7,037,995.00 | L65: 0.1930343798 | M65: =L65/$L$65 -> 1 | O65: 7 | P65: Co2 0 min | Q65: 401,617.37 | R65: 1,372,851.58 | S65: 0.2925424529 | T65: =S65/$S$65 -> 1 | V65: 7 | W65: Co2 0 min | X65: 207,655.15 | Y65: 6,293,096.00 | Z65: 0.03299729601 | AA65: =Z65/$Z$65 -> 1
A66: 8 | B66: Co2 30 min | C66: 1,806,520.00 | D66: 4,211,357.20 | E66: 0.4289638504 | F66: =E66/$E$65 -> 0.7845070207 | H66: 8 | I66: Co2 30 min | J66: 840,738.00 | K66: 9,104,902.00 | L66: 0.09233904989 | M66: =L66/$L$65 -> 0.4783554617 | O66: 8 | P66: Co2 30 min | Q66: 326,806.47 | R66: 1,239,555.58 | S66: 0.2636481004 | T66: =S66/$S$65 -> 0.9012302239 | V66: 8 | W66: Co2 30 min | X66: 117,110.55 | Y66: 6,329,616.00 | Z66: 0.01850199846 | AA66: =Z66/$Z$65 -> 0.5607125642
A67: 9 | B67: Co2 60 min | C67: 1,453,528.00 | D67: 3,349,416.00 | E67: 0.4339646076 | F67: 0.7936526144 | H67: 9 | I67: Co2 60 min | J67: 453,313.50 | K67: 10,240,625.00 | L67: 0.04426619469 | M67: 0.2293176725 | O67: 9 | P67: Co2 60 min | Q67: 319,878.79 | R67: 1,534,111.58 | S67: 0.2085107719 | T67: 0.7127538919 | V67: 9 | W67: Co2 60 min | X67: 70,198.42 | Y67: 6,900,574.00 | Z67: 0.01017283841 | AA67: 0.3082930919

Sheet Figure 3 a+b
A1: WB 1: | G1: WB 2:
A20: Quantification Data:
A21: WB 1: | G21: WB 2:
B22: Cell lines | C22: IP3R-1 | D22: Vinculin | E22: normalized to Vinculin | H22: Cell lines | I22: IP3R-1 | J22: Vinculin | K22: normalized to Vinculin
A23: 1 | B23: KO basal 1 | C23: 2,470,852.44 | D23: 387,534.77 | E23: =C23/D23 -> 6.375821321 | G23: 1 | H23: KO basal 1 | I23: 3,219,332.26 | J23: 342,475.13 | K23: =I23/J23 -> 9.400192728
A24: 2 | B24: KO basal 2 | C24: 2,855,107.11 | D24: 428,006.77 | E24: 6.670705504 | G24: 2 | H24: KO basal 2 | I24: 2,685,634.63 | J24: 369,187.13 | K24: 7.274453482
A25: 3 | B25: KO basal 3 | C25: 2,299,189.78 | D25: 412,342.77 | E25: 5.575918749 | G25: 3 | H25: KO basal 3 | I25: 2,691,447.26 | J25: 368,359.13 | K25: 7.306584839
A26: 4 | B26: WT basal 1 | C26: 1,809,277.78 | D26: 495,798.77 | E26: 3.649217969 | G26: 4 | H26: WT basal 1 | I26: 3,541,660.95 | J26: 659,639.13 | K26: 5.36908859
A27: 5 | B27: WT basal 2 | C27: 1,784,468.44 | D27: 463,022.77 | E27: 3.85395398 | G27: 5 | H27: WT basal 2 | I27: 2,572,318.05 | J27: 694,743.13 | K27: 3.702545484
A28: 6 | B28: WT basal 3 | C28: 1,875,339.56 | D28: 430,474.77 | E28: 4.356444767 | G28: 6 | H28: WT basal 3 | I28: 2,297,763.89 | J28: 693,163.13 | K28: 3.314896281
A29: 7 | B29: WT rescue basal 1 | C29: 1,522,664.44 | D29: 271,206.77 | E29: 5.614404275 | G29: 7 | H29: WT rescue basal 1 | I29: 2,669,051.21 | J29: 399,939.13 | K29: 6.673643523
A30: 8 | B30: WT rescue basal 2 | C30: 1,245,700.89 | D30: 216,798.77 | E30: 5.745885428 | G30: 8 | H30: WT rescue basal 2 | I30: 1,348,072.89 | J30: 289,763.13 | K30: 4.652327149
A31: 9 | B31: WT rescue basal 3 | C31: 769,854.22 | D31: 217,514.77 | E31: 3.539319307 | G31: 9 | H31: WT rescue basal 3 | I31: 1,083,512.26 | J31: 217,587.13 | K31: 4.979670644
A34: WB 3:
A57: Quantification Data:
A58: WB 3:
B59: Cell lines | C59: IP3R-1 | D59: Vinculin | E59: normalized to Vinculin
A60: 1 | B60: SH-SY5Y RNF170 KO basal 1 | C60: 2,186,250.16 | D60: 2,424,830.00 | E60: =C60/D60 -> 0.9016096642
A61: 2 | B61: SH-SY5Y RNF170 KO basal 2 | C61: 2,712,022.27 | D61: 1,745,022.00 | E61: 1.554147896
A62: 3 | B62: SH-SY5Y RNF170 KO basal 3 | C62: 2,066,553.62 | D62: 1,753,146.00 | E62: 1.178768694
A63: 4 | B63: SH-SY5Y RNF170 KO basal 4 | C63: 1,825,061.51 | D63: 2,191,482.00 | E63: 0.8327978571
A64: 5 | B64: SH-SY5Y alt basal 1 | C64: 1,374,376.76 | D64: 2,236,830.00 | E64: 0.6144305811
A65: 6 | B65: SH-SY5Y alt basal 2 | C65: 1,194,522.27 | D65: 2,046,810.00 | E65: 0.5836019319
A66: 7 | B66: SH-SY5Y alt basal 3 | C66: 1,097,642.16 | D66: 2,406,130.00 | E66: 0.4561857265
A67: 8 | B67: SH-SY5Y alt basal 4 | C67: 764,386.38 | D67: 2,109,006.00 | E67: 0.3624391673

Sheet Figure 3 c+d
A2: WB 1: | F2: WB 2: | I2: WB 3: | L2: WB 4:
B21: SH-SY5Y | C21: IP3R1 | D21: Vinculin | E21: Ratio IP3/Vinculin | F21: normalized to 1 | G21: normalized to 100%
B22: WB1
A23: 1 | B23: KO 0h | C23: 37551960.33 | D23: 97620818.92 | E23: 0.3846716381 | F23: 1 | G23: 100
A24: 2 | B24: KO 2h | C24: 51271143.27 | D24: 87685995.92 | E24: 0.5847130175 | F24: 1.520031527 | G24: 152.0031527
A25: 3 | B25: KO 4h | C25: 56523189 | D25: 80716041.92 | E25: 0.7002720606 | F25: 1.084943699 | G25: 108.4943699
A26: 4 | B26: wt 0h | C26: 58470171.73 | D26: 94304728.92 | E26: 0.6200131467 | F26: 1 | G26: 100
A27: 5 | B27: wt 2h | C27: 43423780.33 | D27: 96344569.92 | E27: 0.4507133133 | F27: 0.7269415426 | G27: 72.69415426
A28: 6 | B28: wt 4h | C28: 39788157.67 | D28: 87255334.92 | E28: 0.4559968477 | F28: 0.7354631916 | G28: 73.54631916
A29: 7 | B29: SHSY5Y KO | C29: 52856553.73 | D29: 66550589.92 | E29: 0.7942311825
A30: 8 | B30: SHSY5Y wt | C30: 55762640.13 | D30: 98656977.92 | E30: 0.5652173957
A31: 9 | B31: SHSY5Y wt | C31: 27534263.6 | D31: 57533384.92 | E31: 0.4785788919
B32: WB2
A33: 1 | B33: KO 0h | C33: 29727232.88 | D33: 93773006.16 | E33: 0.3170126894 | F33: 1 | G33: 100
A34: 2 | B34: KO 2h | C34: 32916936.24 | D34: 75275115.16 | E34: 0.4372884209 | F34: 1.379403524 | G34: 137.9403524
A35: 3 | B35: KO 4h | C35: 39336165.22 | D35: 76148441.16 | E35: 0.5165721664 | F35: 1.629499965 | G35: 162.9499965
A36: 4 | B36: wt 0h | C36: 54761658.33 | D36: 94037616.16 | E36: 0.5823377981 | F36: 1 | G36: 100
A37: 5 | B37: wt 2h | C37: 36203880.65 | D37: 86013491.16 | E37: 0.4209093267 | F37: 0.7227923863 | G37: 72.27923863
A38: 6 | B38: wt 4h | C38: 39331816.06 | D38: 81523082.16 | E38: 0.4824623287 | F38: 0.828492209 | G38: 82.8492209
A39: 7 | B39: SHSY5Y KO | C39: 39044701.92 | D39: 66544457.16 | E39: 0.5867461181
A40: 8 | B40: SHSY5Y wt | C40: 45529051.99 | D40: 101885816.2 | E40: 0.4468634959
A41: 9 | B41: SHSY5Y wt | C41: 35588008.07 | D41: 57388437.16 | E41: 0.6201250606
B42: WB3
A43: 1 | B43: KO 0h | C43: 32079871.75 | D43: 59447371.25 | E43: 0.5396348245 | F43: 1 | G43: 100
A44: 2 | B44: KO 2h | C44: 41263266.04 | D44: 54391902.25 | E44: 0.7586288461 | F44: 1.40581892 | G44: 140.581892
A45: 3 | B45: KO 4h | C45: 43018144.73 | D45: 54457566.25 | E45: 0.7899388036 | F45: 1.463839559 | G45: 146.3839559
A46: 4 | B46: wt 0h | C46: 55223854.85 | D46: 89268487.25 | E46: 0.6186265339 | F46: 1 | G46: 100
A47: 5 | B47: wt 2h | C47: 45900878.12 | D47: 73870870.25 | E47: 0.6213664191 | F47: 1.004428981 | G47: 100.4428981
A48: 6 | B48: wt 4h | C48: 46291874.08 | D48: 79034393.25 | E48: 0.5857180928 | F48: 0.9468040259 | G48: 94.68040259
A49: 7 | B49: SHSY5Y wt | C49: 47505959.27 | D49: 50600870.25 | E49: 0.9388368033
A50: 8 | B50: SHSY5Y wt | C50: 51230562.81 | D50: 82557631.25 | E50: 0.620543032
B51: WB4
B52: KO 0h | C52: 29000549.19 | D52: 71009032.38 | E52: 0.4084064832 | F52: 1 | G52: 100
B53: KO 2h | C53: 31920204.57 | D53: 48561469.38 | E53: 0.6573154597 | F53: 1.609463823 | G53: 160.9463823
B54: KO 4h | C54: 39265225.39 | D54: 46067425.38 | E54: 0.852342519 | F54: 2.086995564 | G54: 208.6995564
B55: wt 0h | C55: 46560522.22 | D55: 48978607.38 | E55: 0.950629769 | F55: 1 | G55: 100
B56: wt 2h | C56: 37164193.58 | D56: 53772698.38 | E56: 0.6911349941 | F56: 0.7270285622 | G56: 72.70285622
B57: wt 4h | C57: 29821602.82 | D57: 56852259.38 | E57: 0.5245456055 | F57: 0.5517874809 | G57: 55.17874809
B58: SHSY5Y wt | C58: 26423376.31 | D58: 52468123.38 | E58: 0.5036081836
B59: SHSY5Y wt | C59: 38435971.1 | D59: 79444984.38 | E59: 0.4838061383
A62: WB 3 | H62: WB 4
A85: Quantification Data:
A86: WB 3: | H86: WB 4:
B87: Cell lines | C87: IP3R-1 | D87: Vinculin | E87: normalized to Vinculin | F87: each sample normalized to t=0 | I87: Cell lines | J87: IP3R-1 | K87: Vinculin | L87: normalized to Vinculin | M87: each sample normalized to t=0
A88: 1 | B88: SH-SY5Y RNF170 KO 0 h | C88: 4,743,436.00 | D88: 3,955,562.00 | E88: =C88/D88 -> 1.199181305 | F88: 1 | H88: 1 | I88: SH-SY5Y Cl. 71 + RNF170 WT 0 h | J88: 1,246,789.79 | K88: 1,791,818.96 | L88: 0.6958235284 | M88: 1
A89: 2 | B89: SH-SY5Y RNF170 KO 2 h | C89: 3,821,176.00 | D89: 3,858,478.00 | E89: 0.9903324575 | F89: 0.8258404744 | H89: 2 | I89: SH-SY5Y Cl. 71 + RNF170 WT 2 h | J89: 1,539,745.79 | K89: 2,154,090.96 | L89: 0.7148007301 | M89: 1.02727301
A90: 3 | B90: SH-SY5Y RNF170 KO 4 h | C90: 2,926,356.00 | D90: 3,389,394.00 | E90: 0.8633861982 | F90: 0.7199797019 | H90: 3 | I90: SH-SY5Y Cl. 71 + RNF170 WT 4 h | J90: 1,137,318.62 | K90: 2,133,846.96 | L90: 0.5329897788 | M90: 0.7659841281
A91: 4 | B91: SH-SY5Y alt 0 h | C91: 2,568,480.00 | D91: 4,466,802.00 | E91: 0.5750154137 | F91: 1
A92: 5 | B92: SH-SY5Y alt 2 h | C92: 2,436,228.00 | D92: 2,842,306.00 | E92: 0.8571307945 | F92: 1.490622293
A93: 6 | B93: SH-SY5Y alt 4 h | C93: 2,906,316.00 | D93: 3,097,358.00 | E93: 0.9383209819 | F93: 1.631818834
A101: WB 5 | H101: WB 6
A128: Quantification Data:
A129: WB 5: | H129: WB 6:
B130: Cell lines | C130: IP3R-1 | D130: Vinculin | E130: normalized to Vinculin | F130: each sample normalized to t=0 | I130: Cell lines | J130: IP3R-1 | K130: Vinculin | L130: normalized to Vinculin | M130: each sample normalized to t=0
A131: 1 | B131: SH-SY5Y RNF170 KO 0 h | C131: 2,006,197.05 | D131: 3,557,937.83 | E131: 0.5638651218 | F131: 1 | H131: 1 | I131: SH-SY5Y Cl. 71 + RNF170 WT 0 h | J131: 1,628,394.86 | K131: 1,395,757.00 | L131: 1.166675042 | M131: 1
A132: 2 | B132: SH-SY5Y RNF170 KO 2 h | C132: 1,411,209.45 | D132: 4,100,197.83 | E132: 0.3441808194 | F132: 0.6103956532 | H132: 2 | I132: SH-SY5Y Cl. 71 + RNF170 WT 2 h | J132: 1,419,025.71 | K132: 1,506,273.00 | L132: 0.9420773753 | M132: 0.807489096
A133: 3 | B133: SH-SY5Y RNF170 KO 4 h | C133: 1,116,447.75 | D133: 3,685,449.83 | E133: 0.3029339159 | F133: 0.5372453521 | H133: 3 | I133: SH-SY5Y Cl. 71 + RNF170 WT 4 h | J133: 1,259,138.29 | K133: 1,344,721.00 | L133: 0.9363565273 | M133: 0.8025855472
A134: 4 | B134: SH-SY5Y alt 0 h | C134: 1,103,354.80 | D134: 3,305,893.83 | E134: 0.3337538516 | F134: 1
A135: 5 | B135: SH-SY5Y alt 2 h | C135: 698,283.60 | D135: 3,012,885.83 | E135: 0.2317657019 | F135: 0.6944210555
A136: 6 | B136: SH-SY5Y alt 4 h | C136: 786,809.50 | D136: 2,117,129.83 | E136: 0.3716397018 | F136: 1.113514346
A144: WB 7 | H144: WB 8
A169: Quantification Data:
A170: WB 7: | H170: WB 8:
B171: Cell lines | C171: IP3R-1 | D171: Vinculin | E171: normalized to Vinculin | F171: each sample normalized to t=0 | I171: Cell lines | J171: IP3R-1 | K171: Vinculin | L171: normalized to Vinculin | M171: each sample normalized to t=0
A172: 1 | B172: SH-SY5Y RNF170 KO 0 h | C172: 2,773,293.75 | D172: 4,665,197.65 | E172: 0.5944643635 | F172: 1 | H172: 1 | I172: SH-SY5Y Cl. 71 + RNF170 WT 0 h | J172: 2,314,888.69 | K172: 2,364,606.08 | L172: 0.9789743467 | M172: 1
A173: 2 | B173: SH-SY5Y RNF170 KO 2 h | C173: 1,820,829.00 | D173: 4,748,765.65 | E173: 0.3834320612 | F173: 0.645004284 | H173: 2 | I173: SH-SY5Y Cl. 71 + RNF170 WT 2 h | J173: 1,792,581.38 | K173: 2,737,238.08 | L173: 0.6548869087 | M173: 0.6689520629
A174: 3 | B174: SH-SY5Y RNF170 KO 4 h | C174: 1,721,706.45 | D174: 4,478,733.65 | E174: 0.3844181382 | F174: 0.6466630496 | H174: 3 | I174: SH-SY5Y Cl. 71 + RNF170 WT 4 h | J174: 1,717,555.15 | K174: 2,763,486.08 | L174: 0.6215175702 | M174: 0.6348660436
A175: 4 | B175: SH-SY5Y alt 0 h | C175: 1,652,019.45 | D175: 4,491,473.65 | E175: 0.367812344 | F175: 1
A176: 5 | B176: SH-SY5Y alt 2 h | C176: 1,113,664.90 | D176: 4,492,525.65 | E176: 0.2478928308 | F176: 0.6739655013
A177: 6 | B177: SH-SY5Y alt 4 h | C177: 1,212,213.60 | D177: 4,630,025.18 | E177: 0.2618157686 | F177: 0.7118188741
A185: WB 9 | H185: WB 10
A207: Quantification Data:
A208: WB 9: | H208: WB 10:
B209: Cell lines | C209: IP3R-1 | D209: Vinculin | E209: normalized to Vinculin | F209: each sample normalized to t=0 | I209: Cell lines | J209: IP3R-1 | K209: Vinculin | L209: normalized to Vinculin | M209: each sample normalized to t=0
A210: 1 | B210: SH-SY5Y RNF170 KO 0 h | C210: 4,343,160.00 | D210: 2,567,047.32 | E210: 1.691889342 | F210: 1 | H210: 1 | I210: SH-SY5Y Cl. 71 + RNF170 WT 0 h | J210: 1,978,328.32 | K210: 2,545,737.60 | L210: 0.7771139964 | M210: 1
A211: 2 | B211: SH-SY5Y RNF170 KO 2 h | C211: 2,552,156.00 | D211: 2,617,161.56 | E211: 0.9751618085 | F211: 0.5763744617 | H211: 2 | I211: SH-SY5Y Cl. 71 + RNF170 WT 2 h | J211: 1,615,138.56 | K211: 2,261,601.60 | L211: 0.7141569762 | M211: 0.9189861199
A212: 3 | B212: SH-SY5Y RNF170 KO 4 h | C212: 1,872,260.00 | D212: 2,038,448.88 | E212: 0.9184728734 | F212: 0.5428681716 | H212: 3 | I212: SH-SY5Y Cl. 71 + RNF170 WT 4 h | J212: 1,783,217.28 | K212: 1,951,997.60 | L212: 0.9135345658 | M212: 1.175547693
A213: 4 | B213: SH-SY5Y alt 0 h | C213: 3,370,839.65 | D213: 3,619,335.71 | E213: 0.9313420811 | F213: 1
A214: 5 | B214: SH-SY5Y alt 2 h | C214: 2,028,642.96 | D214: 3,403,898.83 | E214: 0.5959762783 | F214: 0.6399112533
A215: 6 | B215: SH-SY5Y alt 4 h | C215: 1,986,613.04 | D215: 2,326,529.17 | E215: 0.8538956094 | F215: 0.916844226
A223: WB 11 | H223: WB 12
A249: Quantification Data:
A250: WB 11: | H250: WB 12:
B251: Cell lines | C251: IP3R-1 | D251: Vinculin | E251: normalized to Vinculin | F251: each sample normalized to t=0 | I251: Cell lines | J251: IP3R-1 | K251: Vinculin | L251: normalized to Vinculin | M251: each sample normalized to t=0
A252: 1 | B252: SH-SY5Y RNF170 KO 0 h | C252: 3,978,620.40 | D252: 5,182,147.24 | E252: 0.767755182 | F252: 1 | H252: 1 | I252: SH-SY5Y Cl. 71 + RNF170 WT 0 h | J252: 1,283,558.86 | K252: 3,434,357.64 | L252: 0.3737405918 | M252: 1
A253: 2 | B253: SH-SY5Y RNF170 KO 2 h | C253: 2,784,867.45 | D253: 2,852,507.24 | E253: 0.9762875998 | F253: 1.271613169 | H253: 2 | I253: SH-SY5Y Cl. 71 + RNF170 WT 2 h | J253: 1,283,194.86 | K253: 3,689,557.64 | L253: 0.3477909771 | M253: 0.9305678451
A254: 3 | B254: SH-SY5Y RNF170 KO 4 h | C254: 2,260,394.45 | D254: 2,198,583.24 | E254: 1.028114108 | F254: 1.33911712 | H254: 3 | I254: SH-SY5Y Cl. 71 + RNF170 WT 4 h | J254: 1,091,772.00 | K254: 3,764,261.64 | L254: 0.2900361622 | M254: 0.7760360223
A255: 4 | B255: SH-SY5Y alt 0 h | C255: 1,903,560.05 | D255: 2,484,331.24 | E255: 0.7662263457 | F255: 1
A256: 5 | B256: SH-SY5Y alt 2 h | C256: 1,582,592.90 | D256: 3,651,707.24 | E256: 0.4333843856 | F256: 0.5656088283
A257: 6 | B257: SH-SY5Y alt 4 h | C257: 2,094,602.85 | D257: 2,828,891.24 | E257: 0.7404324415 | F257: 0.9663364431
A267: WB 13 | F267: WB 14 | K267: WB 15 | P267: WB 16
A287: SHSY5Y | C287: IP3R1 | D287: Vinculin | F287: Ratio IP3/Vinculin | H287: normalized to 1 | J287: normalized to 100%
A288: WB 13
A289: KO 0h | C289: 37551960.33 | D289: 97620818.92 | F289: 0.3846716381 | H289: 1 | J289: 100
A290: KO 2h | C290: 51271143.27 | D290: 87685995.92 | F290: 0.5847130175 | H290: 1.520031527 | J290: 152.0031527
A291: KO 4h | C291: 56523189 | D291: 80716041.92 | F291: 0.7002720606 | H291: 1.084943699 | J291: 108.4943699
A292: wt 0h | C292: 58470171.73 | D292: 94304728.92 | F292: 0.6200131467 | H292: 1 | J292: 100
A293: wt 2h | C293: 43423780.33 | D293: 96344569.92 | F293: 0.4507133133 | H293: 0.7269415426 | J293: 72.69415426
A294: wt 4h | C294: 39788157.67 | D294: 87255334.92 | F294: 0.4559968477 | H294: 0.7354631916 | J294: 73.54631916
A295: SHSY5Y KO | C295: 52856553.73 | D295: 66550589.92 | F295: 0.7942311825
A296: SHSY5Y wt | C296: 55762640.13 | D296: 98656977.92 | F296: 0.5652173957
A297: SHSY5Y wt | C297: 27534263.6 | D297: 57533384.92 | F297: 0.4785788919
A298: WB 14
A299: KO 0h | C299: 29727232.88 | D299: 93773006.16 | F299: 0.3170126894 | H299: 1 | J299: 100
A300: KO 2h | C300: 32916936.24 | D300: 75275115.16 | F300: 0.4372884209 | H300: 1.379403524 | J300: 137.9403524
A301: KO 4h | C301: 39336165.22 | D301: 76148441.16 | F301: 0.5165721664 | H301: 1.629499965 | J301: 162.9499965
A302: wt 0h | C302: 54761658.33 | D302: 94037616.16 | F302: 0.5823377981 | H302: 1 | J302: 100
A303: wt 2h | C303: 36203880.65 | D303: 86013491.16 | F303: 0.4209093267 | H303: 0.7227923863 | J303: 72.27923863
A304: wt 4h | C304: 39331816.06 | D304: 81523082.16 | F304: 0.4824623287 | H304: 0.828492209 | J304: 82.8492209
A305: SHSY5Y KO | C305: 39044701.92 | D305: 66544457.16 | F305: 0.5867461181
A306: SHSY5Y wt | C306: 45529051.99 | D306: 101885816.2 | F306: 0.4468634959
A307: SHSY5Y wt | C307: 35588008.07 | D307: 57388437.16 | F307: 0.6201250606
A308: WB 15
A309: KO 0h | C309: 32079871.75 | D309: 59447371.25 | F309: 0.5396348245 | H309: 1 | J309: 100
A310: KO 2h | C310: 41263266.04 | D310: 54391902.25 | F310: 0.7586288461 | H310: 1.40581892 | J310: 140.581892
A311: KO 4h | C311: 43018144.73 | D311: 54457566.25 | F311: 0.7899388036 | H311: 1.463839559 | J311: 146.3839559
A312: wt 0h | C312: 55223854.85 | D312: 89268487.25 | F312: 0.6186265339 | H312: 1 | J312: 100
A313: wt 2h | C313: 45900878.12 | D313: 73870870.25 | F313: 0.6213664191 | H313: 1.004428981 | J313: 100.4428981
A314: wt 4h | C314: 46291874.08 | D314: 79034393.25 | F314: 0.5857180928 | H314: 0.9468040259 | J314: 94.68040259
A315: SHSY5Y wt | C315: 47505959.27 | D315: 50600870.25 | F315: 0.9388368033
A316: SHSY5Y wt | C316: 51230562.81 | D316: 82557631.25 | F316: 0.620543032
A317: WB 16
A318: KO 0h | C318: 29000549.19 | D318: 71009032.38 | F318: 0.4084064832 | H318: 1 | J318: 100
A319: KO 2h | C319: 31920204.57 | D319: 48561469.38 | F319: 0.6573154597 | H319: 1.609463823 | J319: 160.9463823
A320: KO 4h | C320: 39265225.39 | D320: 46067425.38 | F320: 0.852342519 | H320: 2.086995564 | J320: 208.6995564
A321: wt 0h | C321: 46560522.22 | D321: 48978607.38 | F321: 0.950629769 | H321: 1 | J321: 100
A322: wt 2h | C322: 37164193.58 | D322: 53772698.38 | F322: 0.6911349941 | H322: 0.7270285622 | J322: 72.70285622
A323: wt 4h | C323: 29821602.82 | D323: 56852259.38 | F323: 0.5245456055 | H323: 0.5517874809 | J323: 55.17874809
A324: SHSY5Y wt | C324: 26423376.31 | D324: 52468123.38 | F324: 0.5036081836
A325: SHSY5Y wt | C325: 38435971.1 | D325: 79444984.38 | F325: 0.4838061383
A328: WB 17: | G328: WB 18: | M328: WB 19:
A351: SHSY5Y
B352: IPR31 | C352: Vinculin | D352: IP3R1 / Vinculin | F352: normalized to 1 | H352: normalized to 100%
A353: WB 17
A354: wt 0h | B354: 31506983 | C354: 50880328.08 | D354: 0.6192370252 | F354: 1.000 | H354: 100.000
A355: wt 2h | B355: 28735247.67 | C355: 49558897.08 | D355: 0.5798201607 | F355: 0.936 | H355: 93.635
A356: wt 4h | B356: 21412967 | C356: 42102997.08 | D356: 0.508585338 | F356: 0.821 | H356: 82.131
A357: WB 18
A358: wt 0h | B358: 26368893 | C358: 37866406.05 | D358: 0.6963664036 | F358: 1.000 | H358: 100.000
A359: wt 2h | B359: 16059132 | C359: 50793148.05 | D359: 0.3161672906 | F359: 0.454 | H359: 45.402
A360: wt 4h | B360: 15780072 | C360: 40574766.05 | D360: 0.3889134439 | F360: 0.558 | H360: 55.849
A361: WB 19
A362: wt 0h | B362: 20046014.18 | C362: 33815351.88 | D362: 0.5928080906 | F362: 1.000 | H362: 100.000
A363: wt 2h | B363: 17811871.15 | C363: 33242686.88 | D363: 0.5358132215 | F363: 0.904 | H363: 90.386
A364: wt 4h | B364: 17426643.14 | C364: 27587724.88 | D364: 0.6316810544 | F364: 1.066 | H364: 106.557

Sheet Figure 3e
